[Event "12h Blitz Kuppenheim Vorrunde"]
[Site "Kuppenheim"]
[Date "2005.06.03"]
[Round "?"]
[White "KingLoek"]
[Black "Cicak"]
[Result "1-0"]
[ECO "A41"]
[WhiteElo "2685"]
[BlackElo "2530"]
[PlyCount "99"]
[EventDate "2005.06.03"]
[EventType "blitz"]
[Source "Kuppenheim"]
[SourceDate "2005.01.01"]
[TimeControl "240"]

1. d4 {[%emt 0:00:00]} g6 {[%emt 0:00:02]} 2. c4 {[%emt 0:00:01]} Bg7 {
[%emt 0:00:00]} 3. Nf3 {[%emt 0:00:02]} d6 {[%emt 0:00:02]} 4. Nc3 {
[%emt 0:00:01]} Nc6 {[%emt 0:00:02]} 5. d5 {[%emt 0:00:09]} Ne5 {[%emt 0:00:02]
} 6. Nxe5 {[%emt 0:00:03]} Bxe5 {[%emt 0:00:00]} 7. e4 {[%emt 0:00:01]} Bg7 {
[%emt 0:00:00]} 8. Be2 {[%emt 0:00:02]} Nf6 {[%emt 0:00:00]} 9. O-O {
[%emt 0:00:01]} O-O {[%emt 0:00:01]} 10. f4 {[%emt 0:00:01]} c6 {[%emt 0:00:01]
} 11. Bf3 {[%emt 0:00:03]} cxd5 {[%emt 0:00:01]} 12. cxd5 {[%emt 0:00:02]} e6 {
[%emt 0:00:00]} 13. dxe6 {[%emt 0:00:04]} Bxe6 {[%emt 0:00:02]} 14. Be3 {
[%emt 0:00:02]} Qa5 {[%emt 0:00:06]} 15. Bd4 {[%emt 0:00:04]} Rfd8 {
[%emt 0:00:02]} 16. Kh1 {[%emt 0:00:04]} Rac8 {[%emt 0:00:03]} 17. f5 {
[%emt 0:00:05]} Bc4 {[%emt 0:00:09]} 18. Rf2 {[%emt 0:00:01]} Nd7 {
[%emt 0:00:08]} 19. Bxg7 {[%emt 0:00:08]} Kxg7 {[%emt 0:00:00]} 20. Qxd6 {
[%emt 0:00:03]} Ne5 {[%emt 0:00:04]} 21. Qe7 {[%emt 0:00:04]} Re8 {
[%emt 0:00:21]} 22. Qh4 {[%emt 0:00:08]} f6 {[%emt 0:00:01]} 23. Qg3 {
[%emt 0:00:06]} g5 {[%emt 0:00:02]} 24. Rd2 {[%emt 0:00:02]} Rcd8 {
[%emt 0:00:04]} 25. Rad1 {[%emt 0:00:01]} Rxd2 {[%emt 0:00:01]} 26. Rxd2 {
[%emt 0:00:01]} Rd8 {[%emt 0:00:01]} 27. Qf2 {[%emt 0:00:10]} Nd3 {
[%emt 0:00:10]} 28. Qe3 {[%emt 0:00:01]} Qe5 {[%emt 0:00:08]} 29. Kg1 {
[%emt 0:00:10]} b6 {[%emt 0:00:07]} 30. Be2 {[%emt 0:00:03]} Qd4 {
[%emt 0:00:17]} 31. Qxd4 {[%emt 0:00:04]} Rxd4 {[%emt 0:00:00]} 32. Bxd3 {
[%emt 0:00:01]} Rxd3 {[%emt 0:00:04]} 33. Rxd3 {[%emt 0:00:01]} Bxd3 {
[%emt 0:00:00]} 34. Kf2 {[%emt 0:00:01]} Bc4 {[%emt 0:00:03]} 35. Ke3 {
[%emt 0:00:02]} Kf7 {[%emt 0:00:01]} 36. Kd4 {[%emt 0:00:02]} Bf1 {
[%emt 0:00:01]} 37. g3 {[%emt 0:00:01]} h5 {[%emt 0:00:02]} 38. h4 {
[%emt 0:00:02]} Bg2 {[%emt 0:00:05]} 39. Kd5 {[%emt 0:00:08]} Ke7 {
[%emt 0:00:02]} 40. Kc6 {[%emt 0:00:01]} Bh1 {[%emt 0:00:07]} 41. b4 {
[%emt 0:00:09]} Bg2 {[%emt 0:00:02]} 42. a4 {[%emt 0:00:03]} Bh1 {
[%emt 0:00:01]} 43. b5 {[%emt 0:00:02]} Bg2 {[%emt 0:00:02]} 44. Kc7 {
[%emt 0:00:08]} Bh1 {[%emt 0:00:02]} 45. Kb8 {[%emt 0:00:02]} Kd6 {
[%emt 0:00:02]} 46. Kxa7 {[%emt 0:00:01]} Kc5 {[%emt 0:00:08]} 47. Nd5 {
[%emt 0:00:04]} Bxe4 {[%emt 0:00:03]} 48. Nxf6 {[%emt 0:00:01]} Bxf5 {
[%emt 0:00:02]} 49. hxg5 {[%emt 0:00:02]} Bc2 {[%emt 0:00:02]} 50. a5 {
Kuppenheim gibt auf  (Lag: Av=0.70s, max=1.7s) [%emt 0:00:09]} 1-0

[Event "12h Blitz Kuppenheim Vorrunde"]
[Site "Kuppenheim"]
[Date "2005.06.03"]
[Round "?"]
[White "Xheladini"]
[Black "KingLoek"]
[Result "0-1"]
[ECO "B30"]
[WhiteElo "2230"]
[BlackElo "2685"]
[PlyCount "114"]
[EventDate "2005.06.03"]
[EventType "blitz"]
[Source "Kuppenheim"]
[SourceDate "2005.01.01"]
[TimeControl "240"]

1. e4 {[%emt 0:00:08]} c5 {[%emt 0:00:02]} 2. Nc3 {[%emt 0:00:04]} Nc6 {
[%emt 0:00:02]} 3. Nf3 {[%emt 0:00:02]} g6 {[%emt 0:00:02]} 4. Bc4 {
[%emt 0:00:02]} Bg7 {[%emt 0:00:02]} 5. O-O {[%emt 0:00:02]} e6 {[%emt 0:00:04]
} 6. Re1 {[%emt 0:00:02]} d6 {[%emt 0:00:08]} 7. a4 {[%emt 0:00:02]} Nge7 {
[%emt 0:00:03]} 8. Bb3 {[%emt 0:00:02]} O-O {[%emt 0:00:02]} 9. d3 {
[%emt 0:00:01]} a6 {[%emt 0:00:02]} 10. Bd2 {[%emt 0:00:02]} Rb8 {
[%emt 0:00:01]} 11. h3 {[%emt 0:00:03]} b5 {[%emt 0:00:01]} 12. axb5 {
[%emt 0:00:02]} axb5 {[%emt 0:00:01]} 13. Qc1 {[%emt 0:00:02]} d5 {
[%emt 0:00:04]} 14. Bh6 {[%emt 0:00:08]} c4 {[%emt 0:00:01]} 15. Ba2 {
[%emt 0:00:03]} Nb4 {[%emt 0:00:13]} 16. Bb1 {[%emt 0:00:04]} d4 {
[%emt 0:00:04]} 17. Ne2 {[%emt 0:00:05]} Nec6 {[%emt 0:00:09]} 18. Ng3 {
[%emt 0:00:06]} e5 {[%emt 0:00:13]} 19. Bg5 {[%emt 0:00:22]} Qd6 {
[%emt 0:00:09]} 20. Bh6 {[%emt 0:00:05]} Be6 {[%emt 0:00:16]} 21. Bxg7 {
[%emt 0:00:10]} Kxg7 {[%emt 0:00:03]} 22. Qg5 {[%emt 0:00:08]} f6 {
[%emt 0:00:03]} 23. Nh5+ {[%emt 0:00:14]} Kh8 {[%emt 0:00:14]} 24. Nxf6 {
[%emt 0:00:04]} Qe7 {[%emt 0:00:07]} 25. Nd5 {[%emt 0:00:13]} Nxd5 {
[%emt 0:00:06]} 26. exd5 {[%emt 0:00:04]} Qxg5 {[%emt 0:00:01]} 27. Nxg5 {
[%emt 0:00:02]} Bxd5 {[%emt 0:00:00]} 28. Ra6 {[%emt 0:00:06]} Ra8 {
[%emt 0:00:04]} 29. Nf7+ {[%emt 0:00:10]} Kg7 {[%emt 0:00:22]} 30. Rxa8 {
[%emt 0:00:06]} Rxa8 {[%emt 0:00:02]} 31. Nxe5 {[%emt 0:00:02]} c3 {
[%emt 0:00:06]} 32. bxc3 {[%emt 0:00:04]} dxc3 {[%emt 0:00:01]} 33. Nxc6 {
[%emt 0:00:03]} Bxc6 {[%emt 0:00:01]} 34. Re6 {[%emt 0:00:09]} Be8 {
[%emt 0:00:07]} 35. Kh2 {[%emt 0:00:05]} b4 {[%emt 0:00:19]} 36. Rb6 {
[%emt 0:00:09]} Ra4 {[%emt 0:00:01]} 37. d4 {[%emt 0:00:02]} Bf7 {
[%emt 0:00:02]} 38. g4 {[%emt 0:00:04]} Bd5 {[%emt 0:00:04]} 39. Kg3 {
[%emt 0:00:01]} b3 {[%emt 0:00:01]} 40. cxb3 {[%emt 0:00:02]} Rxd4 {
[%emt 0:00:00]} 41. Rd6 {[%emt 0:00:04]} Rd1 {[%emt 0:00:03]} 42. Bc2 {
[%emt 0:00:02]} Rd2 {[%emt 0:00:02]} 43. Bb1 {[%emt 0:00:03]} Bxb3 {
[%emt 0:00:02]} 44. Rc6 {[%emt 0:00:08]} c2 {[%emt 0:00:01]} 45. Bxc2 {
[%emt 0:00:02]} Rxc2 {[%emt 0:00:01]} 46. Rxc2 {[%emt 0:00:03]} Bxc2 {
[%emt 0:00:01]} 47. f4 {[%emt 0:00:01]} Kf6 {[%emt 0:00:01]} 48. Kh4 {
[%emt 0:00:01]} Bd3 {[%emt 0:00:01]} 49. Kg3 {[%emt 0:00:01]} Bf1 {
[%emt 0:00:01]} 50. Kh4 {[%emt 0:00:02]} h6 {[%emt 0:00:01]} 51. Kg3 {
[%emt 0:00:01]} Ke6 {[%emt 0:00:01]} 52. h4 {[%emt 0:00:02]} h5 {[%emt 0:00:03]
} 53. f5+ {[%emt 0:00:08]} gxf5 {[%emt 0:00:02]} 54. gxh5 {[%emt 0:00:02]} Kf6
{[%emt 0:00:04]} 55. h6 {[%emt 0:00:01]} Kg6 {[%emt 0:00:01]} 56. h7 {
[%emt 0:00:01]} Kxh7 {[%emt 0:00:01]} 57. Kf4 {. [%emt 0:00:01]} Bd3 {
Zeit  (Lag: Av=0.67s, max=1.9s) [%emt 0:00:00]} 0-1

[Event "12h Blitz Kuppenheim Vorrunde"]
[Site "Kuppenheim"]
[Date "2005.06.03"]
[Round "?"]
[White "KingLoek"]
[Black "Bilger"]
[Result "1-0"]
[ECO "E67"]
[WhiteElo "2685"]
[BlackElo "1800"]
[PlyCount "63"]
[EventDate "2005.06.03"]
[EventType "blitz"]
[Source "Kuppenheim"]
[SourceDate "2005.01.01"]
[TimeControl "240"]

1. d4 {[%emt 0:00:02]} g6 {[%emt 0:00:05]} 2. c4 {[%emt 0:00:02]} Bg7 {
[%emt 0:00:03]} 3. Nf3 {[%emt 0:00:01]} d6 {[%emt 0:00:03]} 4. Nc3 {
[%emt 0:00:02]} Nd7 {[%emt 0:00:06]} 5. g3 {[%emt 0:00:02]} e5 {[%emt 0:00:08]}
6. Bg2 {[%emt 0:00:01]} Ngf6 {[%emt 0:00:11]} 7. O-O {[%emt 0:00:02]} O-O {
[%emt 0:00:02]} 8. Qc2 {[%emt 0:00:04]} exd4 {[%emt 0:00:09]} 9. Nxd4 {
[%emt 0:00:02]} Ne5 {[%emt 0:00:09]} 10. b3 {[%emt 0:00:06]} Rb8 {
[%emt 0:00:11]} 11. Rd1 {[%emt 0:00:04]} Bd7 {[%emt 0:00:05]} 12. h3 {
[%emt 0:00:05]} Re8 {[%emt 0:00:14]} 13. e4 {[%emt 0:00:05]} Nc6 {
[%emt 0:00:09]} 14. Be3 {[%emt 0:00:04]} Nxd4 {[%emt 0:00:06]} 15. Bxd4 {
[%emt 0:00:02]} Bc6 {[%emt 0:00:03]} 16. Rac1 {[%emt 0:00:11]} Qd7 {
[%emt 0:00:07]} 17. Nd5 {[%emt 0:00:07]} Bxd5 {[%emt 0:00:20]} 18. cxd5 {
[%emt 0:00:02]} Rec8 {[%emt 0:00:09]} 19. Bxa7 {[%emt 0:00:03]} Ra8 {
[%emt 0:00:03]} 20. Be3 {[%emt 0:00:01]} Ne8 {[%emt 0:00:17]} 21. a4 {
[%emt 0:00:05]} c6 {[%emt 0:00:09]} 22. dxc6 {[%emt 0:00:07]} Rxc6 {
[%emt 0:00:03]} 23. Qd3 {[%emt 0:00:03]} Rxc1 {[%emt 0:00:03]} 24. Rxc1 {
[%emt 0:00:01]} Rc8 {[%emt 0:00:03]} 25. Rxc8 {[%emt 0:00:05]} Qxc8 {
[%emt 0:00:03]} 26. Bf1 {[%emt 0:00:07]} Qc6 {[%emt 0:00:09]} 27. Qc4 {
[%emt 0:00:05]} Nc7 {[%emt 0:00:12]} 28. Qxc6 {[%emt 0:00:05]} bxc6 {
[%emt 0:00:02]} 29. Bb6 {[%emt 0:00:03]} Ne6 {[%emt 0:00:05]} 30. a5 {
[%emt 0:00:01]} Bd4 {[%emt 0:00:10]} 31. Bxd4 {[%emt 0:00:03]} Nxd4 {
[%emt 0:00:02]} 32. a6 {
Kuppenheim gibt auf  (Lag: Av=0.63s, max=1.1s) [%emt 0:00:01]} 1-0

[Event "12h Blitz Kuppenheim Vorrunde"]
[Site "Kuppenheim"]
[Date "2005.06.03"]
[Round "?"]
[White "Schmitt"]
[Black "KingLoek"]
[Result "0-1"]
[ECO "B81"]
[WhiteElo "2150"]
[BlackElo "2685"]
[PlyCount "60"]
[EventDate "2005.06.03"]
[EventType "blitz"]
[Source "Kuppenheim"]
[SourceDate "2005.01.01"]
[TimeControl "240"]

1. e4 {[%emt 0:00:04]} c5 {[%emt 0:00:02]} 2. Nf3 {[%emt 0:00:01]} e6 {
[%emt 0:00:02]} 3. d4 {[%emt 0:00:07]} cxd4 {[%emt 0:00:01]} 4. Nxd4 {
[%emt 0:00:00]} Nf6 {[%emt 0:00:01]} 5. Nc3 {[%emt 0:00:02]} d6 {[%emt 0:00:02]
} 6. g4 {[%emt 0:00:02]} Nc6 {[%emt 0:00:03]} 7. g5 {[%emt 0:00:02]} Nd7 {
[%emt 0:00:01]} 8. h4 {[%emt 0:00:01]} Be7 {[%emt 0:00:02]} 9. Be3 {
[%emt 0:00:01]} a6 {[%emt 0:00:02]} 10. Qh5 {[%emt 0:00:03]} O-O {
[%emt 0:00:03]} 11. O-O-O {[%emt 0:00:06]} Re8 {[%emt 0:00:07]} 12. f4 {
[%emt 0:00:04]} Bf8 {[%emt 0:00:02]} 13. Bh3 {[%emt 0:00:21]} Nxd4 {
[%emt 0:00:36]} 14. Rxd4 {[%emt 0:00:10]} b5 {[%emt 0:00:05]} 15. Qe2 {
[%emt 0:00:21]} Bb7 {[%emt 0:00:08]} 16. h5 {[%emt 0:00:05]} e5 {[%emt 0:00:05]
} 17. fxe5 {[%emt 0:00:10]} Nxe5 {[%emt 0:00:02]} 18. Bf5 {[%emt 0:00:13]} Qc7
{[%emt 0:00:16]} 19. g6 {[%emt 0:00:04]} fxg6 {[%emt 0:00:04]} 20. hxg6 {
[%emt 0:00:01]} hxg6 {[%emt 0:00:02]} 21. Bxg6 {[%emt 0:00:09]} Nxg6 {
[%emt 0:00:03]} 22. Qh5 {[%emt 0:00:03]} Re6 {[%emt 0:00:15]} 23. Nd5 {
[%emt 0:00:12]} Bxd5 {[%emt 0:00:04]} 24. exd5 {[%emt 0:00:02]} Rf6 {
[%emt 0:00:23]} 25. Bg5 {[%emt 0:00:02]} Rc8 {[%emt 0:00:04]} 26. c3 {
[%emt 0:00:04]} Qe7 {[%emt 0:00:02]} 27. Bxf6 {[%emt 0:00:10]} Qxf6 {
[%emt 0:00:01]} 28. Qh7+ {[%emt 0:00:02]} Kf7 {[%emt 0:00:02]} 29. Qh2 {
[%emt 0:00:09]} Qxd4 {[%emt 0:00:05]} 30. Rf1+ {[%emt 0:00:05]} Kg8 {
Kuppenheim gibt auf  (Lag: Av=0.70s, max=1.9s) [%emt 0:00:17]} 0-1

[Event "12h Blitz Kuppenheim Vorrunde"]
[Site "Kuppenheim"]
[Date "2005.06.03"]
[Round "?"]
[White "KingLoek"]
[Black "Raub"]
[Result "1-0"]
[ECO "D93"]
[WhiteElo "2685"]
[BlackElo "1800"]
[PlyCount "81"]
[EventDate "2005.06.03"]
[EventType "blitz"]
[Source "Kuppenheim"]
[SourceDate "2005.01.01"]
[TimeControl "240"]

1. d4 {[%emt 0:00:00]} Nf6 {[%emt 0:00:04]} 2. Nf3 {[%emt 0:00:02]} d5 {
[%emt 0:00:04]} 3. c4 {[%emt 0:00:02]} c6 {[%emt 0:00:02]} 4. Nc3 {
[%emt 0:00:01]} g6 {[%emt 0:00:06]} 5. Bf4 {[%emt 0:00:03]} Bg7 {[%emt 0:00:03]
} 6. e3 {[%emt 0:00:01]} O-O {[%emt 0:00:05]} 7. h3 {[%emt 0:00:01]} dxc4 {
[%emt 0:00:19]} 8. Bxc4 {[%emt 0:00:03]} Nbd7 {[%emt 0:00:05]} 9. O-O {
[%emt 0:00:13]} Nb6 {[%emt 0:00:03]} 10. Bb3 {[%emt 0:00:02]} Bf5 {
[%emt 0:00:10]} 11. Re1 {[%emt 0:00:04]} Ne4 {[%emt 0:00:11]} 12. Rc1 {
[%emt 0:00:03]} Rc8 {[%emt 0:00:09]} 13. Nd2 {[%emt 0:00:07]} Nxc3 {
[%emt 0:00:02]} 14. bxc3 {[%emt 0:00:01]} Bd3 {[%emt 0:00:14]} 15. e4 {
[%emt 0:00:17]} e6 {[%emt 0:00:04]} 16. Nf3 {[%emt 0:00:05]} Bc4 {
[%emt 0:00:02]} 17. Ne5 {[%emt 0:00:01]} Bxb3 {[%emt 0:00:02]} 18. axb3 {
[%emt 0:00:01]} Nd7 {[%emt 0:00:01]} 19. Nc4 {[%emt 0:00:02]} Nb6 {
[%emt 0:00:01]} 20. Nd6 {[%emt 0:00:02]} Rb8 {[%emt 0:00:03]} 21. c4 {
[%emt 0:00:03]} Nc8 {[%emt 0:00:08]} 22. c5 {[%emt 0:00:08]} b5 {[%emt 0:00:05]
} 23. Qd2 {[%emt 0:00:07]} a5 {[%emt 0:00:02]} 24. Ra1 {[%emt 0:00:03]} Ra8 {
[%emt 0:00:01]} 25. Red1 {[%emt 0:00:04]} a4 {[%emt 0:00:02]} 26. bxa4 {
[%emt 0:00:03]} bxa4 {[%emt 0:00:01]} 27. Rdb1 {[%emt 0:00:08]} Qa5 {
[%emt 0:00:03]} 28. Qxa5 {[%emt 0:00:08]} Rxa5 {[%emt 0:00:03]} 29. Rb4 {
[%emt 0:00:00]} Nxd6 {[%emt 0:00:03]} 30. Bxd6 {[%emt 0:00:10]} Rfa8 {
[%emt 0:00:02]} 31. e5 {[%emt 0:00:01]} Bh6 {[%emt 0:00:03]} 32. Rb6 {
[%emt 0:00:05]} a3 {[%emt 0:00:03]} 33. Ra2 {[%emt 0:00:03]} Bc1 {
[%emt 0:00:05]} 34. Rxc6 {[%emt 0:00:03]} Bb2 {[%emt 0:00:01]} 35. Rc7 {
[%emt 0:00:08]} R5a7 {[%emt 0:00:02]} 36. Rxa7 {[%emt 0:00:07]} Rxa7 {
[%emt 0:00:02]} 37. c6 {[%emt 0:00:00]} Ra4 {[%emt 0:00:02]} 38. c7 {
[%emt 0:00:07]} Rc4 {[%emt 0:00:02]} 39. Bc5 {[%emt 0:00:03]} Bxd4 {
[%emt 0:00:05]} 40. c8=Q+ {[%emt 0:00:02]} Kg7 {[%emt 0:00:04]} 41. Qf8# {
(Lag: Av=0.63s, max=1.0s) [%emt 0:00:03]} 1-0

[Event "12h Blitz Kuppenheim Vorrunde"]
[Site "Kuppenheim"]
[Date "2005.06.03"]
[Round "?"]
[White "Scheidl"]
[Black "KingLoek"]
[Result "0-1"]
[ECO "A46"]
[WhiteElo "1500"]
[BlackElo "2685"]
[PlyCount "52"]
[EventDate "2005.06.03"]
[EventType "blitz"]
[Source "Kuppenheim"]
[SourceDate "2005.01.01"]
[TimeControl "240"]

1. d4 {[%emt 0:00:02]} Nf6 {[%emt 0:00:01]} 2. Nf3 {[%emt 0:00:01]} c5 {
[%emt 0:00:05]} 3. Bf4 {[%emt 0:00:12]} cxd4 {[%emt 0:00:02]} 4. Nxd4 {
[%emt 0:00:04]} e5 {[%emt 0:00:04]} 5. Bxe5 {[%emt 0:00:10]} Qa5+ {
[%emt 0:00:01]} 6. c3 {[%emt 0:00:03]} Qxe5 {[%emt 0:00:01]} 7. e3 {
[%emt 0:00:01]} Nc6 {[%emt 0:00:02]} 8. Nd2 {[%emt 0:00:02]} Nxd4 {
[%emt 0:00:09]} 9. cxd4 {[%emt 0:00:02]} Qa5 {[%emt 0:00:02]} 10. Bd3 {
[%emt 0:00:06]} Bb4 {[%emt 0:00:03]} 11. a3 {[%emt 0:00:02]} Bxd2+ {
[%emt 0:00:01]} 12. Qxd2 {[%emt 0:00:01]} Qxd2+ {[%emt 0:00:00]} 13. Kxd2 {
[%emt 0:00:01]} d5 {[%emt 0:00:01]} 14. b4 {[%emt 0:00:03]} Be6 {[%emt 0:00:02]
} 15. h3 {[%emt 0:00:02]} h5 {[%emt 0:00:02]} 16. Rhc1 {[%emt 0:00:01]} Kd7 {
[%emt 0:00:02]} 17. Rc3 {[%emt 0:00:01]} Rhc8 {[%emt 0:00:03]} 18. Rac1 {
[%emt 0:00:04]} Rxc3 {[%emt 0:00:01]} 19. Rxc3 {[%emt 0:00:01]} Rc8 {
[%emt 0:00:00]} 20. Bb5+ {[%emt 0:00:26]} Kd6 {[%emt 0:00:02]} 21. Rc5 {
[%emt 0:00:08]} Ne4+ {[%emt 0:00:01]} 22. Ke2 {[%emt 0:00:09]} Nxc5 {
[%emt 0:00:01]} 23. dxc5+ {[%emt 0:00:01]} Ke7 {[%emt 0:00:02]} 24. Bd3 {
[%emt 0:00:04]} b6 {[%emt 0:00:02]} 25. cxb6 {[%emt 0:00:05]} axb6 {
[%emt 0:00:01]} 26. f3 {[%emt 0:00:03]} Ra8 {
Kuppenheim gibt auf  (Lag: Av=0.60s, max=1.0s) [%emt 0:00:03]} 0-1

[Event "12h Blitz Kuppenheim Vorrunde"]
[Site "Kuppenheim"]
[Date "2005.06.03"]
[Round "?"]
[White "KingLoek"]
[Black "Heuser"]
[Result "1-0"]
[ECO "E91"]
[WhiteElo "2685"]
[BlackElo "1650"]
[PlyCount "71"]
[EventDate "2005.06.03"]
[EventType "blitz"]
[Source "Kuppenheim"]
[SourceDate "2005.01.01"]
[TimeControl "240"]

1. d4 {[%emt 0:00:01]} Nf6 {[%emt 0:00:02]} 2. Nf3 {[%emt 0:00:03]} g6 {
[%emt 0:00:02]} 3. c4 {[%emt 0:00:02]} Bg7 {[%emt 0:00:01]} 4. Nc3 {
[%emt 0:00:01]} d6 {[%emt 0:00:01]} 5. e4 {[%emt 0:00:01]} O-O {[%emt 0:00:01]}
6. Be2 {[%emt 0:00:00]} c5 {[%emt 0:00:02]} 7. d5 {[%emt 0:00:03]} Nbd7 {
[%emt 0:00:01]} 8. h3 {[%emt 0:00:05]} a6 {[%emt 0:00:22]} 9. a4 {
[%emt 0:00:02]} Re8 {[%emt 0:00:03]} 10. O-O {[%emt 0:00:03]} Nf8 {
[%emt 0:00:02]} 11. Bf4 {[%emt 0:00:09]} Bd7 {[%emt 0:00:02]} 12. e5 {
[%emt 0:00:06]} dxe5 {[%emt 0:00:02]} 13. Nxe5 {[%emt 0:00:02]} e6 {
[%emt 0:00:12]} 14. Bf3 {[%emt 0:00:06]} Rc8 {[%emt 0:00:17]} 15. d6 {
[%emt 0:00:11]} Bc6 {[%emt 0:00:19]} 16. Nxc6 {[%emt 0:00:15]} bxc6 {
[%emt 0:00:01]} 17. a5 {[%emt 0:00:02]} N8d7 {[%emt 0:00:14]} 18. Re1 {
[%emt 0:00:08]} e5 {[%emt 0:00:02]} 19. Bg3 {[%emt 0:00:04]} Rb8 {
[%emt 0:00:07]} 20. b3 {[%emt 0:00:05]} h6 {[%emt 0:00:18]} 21. Bxc6 {
[%emt 0:00:03]} Nh5 {[%emt 0:00:13]} 22. Bh2 {[%emt 0:00:05]} Nf4 {
[%emt 0:00:09]} 23. Bxf4 {[%emt 0:00:15]} exf4 {[%emt 0:00:00]} 24. Rxe8+ {
[%emt 0:00:22]} Qxe8 {[%emt 0:00:00]} 25. Qd2 {[%emt 0:00:02]} Rc8 {
[%emt 0:00:07]} 26. Re1 {[%emt 0:00:05]} Qd8 {[%emt 0:00:09]} 27. Nd5 {
[%emt 0:00:01]} Rxc6 {[%emt 0:00:20]} 28. Ne7+ {[%emt 0:00:03]} Kh7 {
[%emt 0:00:00]} 29. Nxc6 {[%emt 0:00:01]} Qc8 {[%emt 0:00:04]} 30. Ne7 {
[%emt 0:00:13]} Qa8 {[%emt 0:00:13]} 31. Qxf4 {[%emt 0:00:02]} Nf6 {
[%emt 0:00:08]} 32. Rd1 {[%emt 0:00:12]} Qd8 {[%emt 0:00:03]} 33. Nc6 {
[%emt 0:00:08]} Qd7 {[%emt 0:00:03]} 34. Ne5 {[%emt 0:00:01]} Qd8 {
[%emt 0:00:05]} 35. d7 {[%emt 0:00:03]} Nh5 {[%emt 0:00:07]} 36. Qxf7 {
Zeit  (Lag: Av=0.72s, max=2.5s) [%emt 0:00:04]} 1-0

[Event "12h Blitz Kuppenheim Vorrunde"]
[Site "Kuppenheim"]
[Date "2005.06.03"]
[Round "?"]
[White "Mutschnik"]
[Black "KingLoek"]
[Result "0-1"]
[ECO "B80"]
[WhiteElo "2410"]
[BlackElo "2685"]
[PlyCount "98"]
[EventDate "2005.06.03"]
[EventType "blitz"]
[Source "Kuppenheim"]
[SourceDate "2005.01.01"]
[TimeControl "240"]

1. e4 {[%emt 0:00:02]} c5 {[%emt 0:00:02]} 2. Nf3 {[%emt 0:00:01]} d6 {
[%emt 0:00:01]} 3. d4 {[%emt 0:00:01]} cxd4 {[%emt 0:00:00]} 4. Nxd4 {
[%emt 0:00:00]} Nf6 {[%emt 0:00:00]} 5. Nc3 {[%emt 0:00:01]} a6 {[%emt 0:00:01]
} 6. Be3 {[%emt 0:00:01]} e6 {[%emt 0:00:01]} 7. Qd2 {[%emt 0:00:02]} b5 {
[%emt 0:00:02]} 8. f3 {[%emt 0:00:03]} Nbd7 {[%emt 0:00:03]} 9. g4 {
[%emt 0:00:01]} Nb6 {[%emt 0:00:02]} 10. Qf2 {[%emt 0:00:01]} Nfd7 {
[%emt 0:00:04]} 11. f4 {[%emt 0:00:03]} Qc7 {[%emt 0:00:15]} 12. f5 {
[%emt 0:00:05]} e5 {[%emt 0:00:01]} 13. Nb3 {[%emt 0:00:15]} Bb7 {
[%emt 0:00:06]} 14. Bg2 {[%emt 0:00:02]} Nc4 {[%emt 0:00:03]} 15. O-O-O {
[%emt 0:00:07]} Rc8 {[%emt 0:00:04]} 16. Kb1 {[%emt 0:00:27]} Nxe3 {
[%emt 0:00:17]} 17. Qxe3 {[%emt 0:00:01]} b4 {[%emt 0:00:00]} 18. Ne2 {
[%emt 0:00:09]} Qxc2+ {[%emt 0:00:05]} 19. Ka1 {[%emt 0:00:01]} Qc7 {
[%emt 0:00:09]} 20. Rc1 {[%emt 0:00:02]} Qb8 {[%emt 0:00:01]} 21. Rxc8+ {
[%emt 0:00:02]} Bxc8 {[%emt 0:00:06]} 22. g5 {[%emt 0:00:07]} Be7 {
[%emt 0:00:03]} 23. h4 {[%emt 0:00:05]} h6 {[%emt 0:00:01]} 24. f6 {
[%emt 0:00:07]} gxf6 {[%emt 0:00:02]} 25. gxh6 {[%emt 0:00:01]} Bf8 {
[%emt 0:00:06]} 26. Bh3 {[%emt 0:00:03]} Rh7 {[%emt 0:00:21]} 27. Rg1 {
[%emt 0:00:07]} Bxh6 {[%emt 0:00:10]} 28. Qf3 {[%emt 0:00:03]} Rg7 {
[%emt 0:00:05]} 29. Bxd7+ {[%emt 0:00:14]} Bxd7 {[%emt 0:00:04]} 30. Qxf6 {
[%emt 0:00:01]} Rxg1+ {[%emt 0:00:04]} 31. Nxg1 {[%emt 0:00:02]} Qb6 {
[%emt 0:00:07]} 32. Qxh6 {[%emt 0:00:15]} Qxg1+ {[%emt 0:00:02]} 33. Nc1 {
[%emt 0:00:00]} Bc6 {[%emt 0:00:05]} 34. a3 {[%emt 0:00:13]} b3 {[%emt 0:00:03]
} 35. Qd2 {[%emt 0:00:08]} Bxe4 {[%emt 0:00:04]} 36. Qc3 {[%emt 0:00:01]} Kd7 {
[%emt 0:00:07]} 37. Qc4 {[%emt 0:00:04]} Bd5 {[%emt 0:00:18]} 38. Qc3 {
[%emt 0:00:07]} Qd1 {[%emt 0:00:06]} 39. Qe3 {[%emt 0:00:02]} f5 {
[%emt 0:00:03]} 40. Qg5 {[%emt 0:00:08]} f4 {[%emt 0:00:03]} 41. Qf5+ {
[%emt 0:00:05]} Kc6 {[%emt 0:00:04]} 42. Qc8+ {[%emt 0:00:01]} Kb5 {
[%emt 0:00:04]} 43. Qb8+ {[%emt 0:00:02]} Kc5 {[%emt 0:00:02]} 44. Qb4+ {
[%emt 0:00:03]} Kc6 {[%emt 0:00:01]} 45. Qa4+ {[%emt 0:00:04]} Kc7 {
[%emt 0:00:01]} 46. Qa5+ {[%emt 0:00:02]} Kd7 {[%emt 0:00:02]} 47. Qc3 {
[%emt 0:00:03]} f3 {[%emt 0:00:01]} 48. Qe3 {[%emt 0:00:04]} f2 {[%emt 0:00:02]
} 49. Qh3+ {[%emt 0:00:04]} Ke7 {
Kuppenheim gibt auf  (Lag: Av=0.61s, max=1.2s) [%emt 0:00:02]} 0-1

[Event "12h Blitz Kuppenheim Vorrunde"]
[Site "Kuppenheim"]
[Date "2005.06.03"]
[Round "?"]
[White "KingLoek"]
[Black "Polaczek"]
[Result "1-0"]
[ECO "D15"]
[WhiteElo "2685"]
[BlackElo "2430"]
[PlyCount "55"]
[EventDate "2005.06.03"]
[EventType "blitz"]
[Source "Kuppenheim"]
[SourceDate "2005.01.01"]
[TimeControl "240"]

1. d4 {[%emt 0:00:00]} d5 {[%emt 0:00:02]} 2. c4 {[%emt 0:00:01]} c6 {
[%emt 0:00:02]} 3. Nc3 {[%emt 0:00:01]} Nf6 {[%emt 0:00:01]} 4. Nf3 {
[%emt 0:00:01]} a6 {[%emt 0:00:01]} 5. a4 {[%emt 0:00:04]} e6 {[%emt 0:00:06]}
6. Bg5 {[%emt 0:00:02]} Nbd7 {[%emt 0:00:02]} 7. cxd5 {[%emt 0:00:03]} exd5 {
[%emt 0:00:02]} 8. e3 {[%emt 0:00:04]} a5 {[%emt 0:00:06]} 9. Bd3 {
[%emt 0:00:02]} Be7 {[%emt 0:00:03]} 10. Qc2 {[%emt 0:00:01]} O-O {
[%emt 0:00:04]} 11. O-O {[%emt 0:00:02]} Re8 {[%emt 0:00:03]} 12. Rae1 {
[%emt 0:00:01]} Nf8 {[%emt 0:00:07]} 13. Ne5 {[%emt 0:00:02]} Be6 {
[%emt 0:00:09]} 14. f4 {[%emt 0:00:03]} Ne4 {[%emt 0:00:44]} 15. Bxe7 {
[%emt 0:00:11]} Qxe7 {[%emt 0:00:01]} 16. f5 {[%emt 0:00:10]} Bc8 {
[%emt 0:00:06]} 17. Nxe4 {[%emt 0:00:07]} f6 {[%emt 0:00:23]} 18. Nxc6 {
[%emt 0:00:18]} bxc6 {[%emt 0:00:05]} 19. Nc5 {[%emt 0:00:03]} Qc7 {
[%emt 0:00:13]} 20. e4 {[%emt 0:00:17]} dxe4 {[%emt 0:00:07]} 21. Bxe4 {
[%emt 0:00:02]} Rd8 {[%emt 0:00:02]} 22. Qc4+ {[%emt 0:00:11]} Kh8 {
[%emt 0:00:03]} 23. Ne6 {[%emt 0:00:06]} Nxe6 {[%emt 0:00:09]} 24. fxe6 {
[%emt 0:00:01]} Qd6 {[%emt 0:00:01]} 25. Bxc6 {[%emt 0:00:17]} Ba6 {
[%emt 0:00:03]} 26. Qc5 {[%emt 0:00:09]} Rac8 {[%emt 0:00:12]} 27. Qxd6 {
[%emt 0:00:09]} Rxd6 {[%emt 0:00:01]} 28. e7 {
Kuppenheim gibt auf  (Lag: Av=0.55s, max=0.8s) [%emt 0:00:01]} 1-0